[Event "Titled Tuesday Blitz January 10 Early 2023"]
[White "Mikhailovsky, Vladimir"]
[Black "Oro, Faustino"]
[WhiteFideId "34105414"]
[BlackFideId "20000197"]
[WhiteElo "2215"]
[BlackElo "2269"]
[Result "1-0"]
[Round "07"]
[TimeControl "180+2"]
[Date "2023.01.10"]
[WhiteClock "0:00:09"]
[BlackClock "0:00:04"]

1. d4 {[%clk 0:02:59]}  Nf6 {[%clk 0:02:59]} 2. c4 {[%clk 0:03:00]}  e6 {[%clk 0:02:59]} 3. Nc3 {[%clk 0:03:00]}  Bb4 {[%clk 0:02:59]} 4. e3 {[%clk 0:03:00]}  d5 {[%clk 0:02:58]} 5. a3 {[%clk 0:02:57]}  Bxc3+ {[%clk 0:02:55]} 6. bxc3 {[%clk 0:02:58]}  O-O {[%clk 0:02:55]} 7. cxd5 {[%clk 0:02:57]}  exd5 {[%clk 0:02:54]} 8. Bd3 {[%clk 0:02:58]}  c5 {[%clk 0:02:46]} 9. Ne2 {[%clk 0:02:58]}  Qc7 {[%clk 0:02:46]} 10. O-O {[%clk 0:02:57]}  Re8 {[%clk 0:02:44]} 11. f3 {[%clk 0:02:56]}  b6 {[%clk 0:02:41]} 12. Ng3 {[%clk 0:02:36]}  Ba6 {[%clk 0:02:37]} 13. Ra2 {[%clk 0:01:16]}  Bxd3 {[%clk 0:02:16]} 14. Qxd3 {[%clk 0:01:16]}  Nc6 {[%clk 0:02:17]} 15. e4 {[%clk 0:01:08]}  cxd4 {[%clk 0:01:46]} 16. cxd4 {[%clk 0:01:06]}  Rac8 {[%clk 0:01:19]} 17. e5 {[%clk 0:01:01]}  Nd7 {[%clk 0:01:17]} 18. Nf5 {[%clk 0:00:49]}  Re6 {[%clk 0:01:12]} 19. Rc2 {[%clk 0:00:36]}  Rd8 {[%clk 0:01:00]} 20. Bg5 {[%clk 0:00:32]}  f6 {[%clk 0:00:47]} 21. Rfc1 {[%clk 0:00:17]}  Rde8 {[%clk 0:00:37]} 22. Nd6 {[%clk 0:00:14]}  Ndb8 {[%clk 0:00:12]} 23. Nxe8 {[%clk 0:00:13]}  Rxe8 {[%clk 0:00:13]} 24. exf6 {[%clk 0:00:12]}  g6 {[%clk 0:00:12]} 25. Bh4 {[%clk 0:00:10]}  Qf4 {[%clk 0:00:11]} 26. Bg3 {[%clk 0:00:10]}  Qxd4+ {[%clk 0:00:10]} 27. Qxd4 {[%clk 0:00:09]}  Nxd4 {[%clk 0:00:11]} 28. Rc8 {[%clk 0:00:09]}  Kf7 {[%clk 0:00:07]} 29. Rxe8 {[%clk 0:00:09]}  Kxe8 {[%clk 0:00:04]} 30. Rc8+ {[%clk 0:00:09]} 1-0


[Site "https://www.chess.com"]

[Event "Titled Tuesday Blitz January 10 Early 2023"]
[White "Harsha Bharathakoti"]
[Black "Ashraf, Artin"]
[WhiteFideId "5078776"]
[BlackFideId "22514805"]
[WhiteElo "2602"]
[BlackElo "2314"]
[Result "1-0"]
[Round "07"]
[TimeControl "180+2"]
[Date "2023.01.10"]
[WhiteClock "0:00:06"]
[BlackClock "0:00:02"]

1. e4 {[%clk 0:03:00]}  c5 {[%clk 0:02:58]} 2. Nc3 {[%clk 0:02:59]}  Nc6 {[%clk 0:02:57]} 3. Bb5 {[%clk 0:02:58]}  Nd4 {[%clk 0:02:47]} 4. Nf3 {[%clk 0:02:58]}  g6 {[%clk 0:02:40]} 5. Nxd4 {[%clk 0:02:55]}  cxd4 {[%clk 0:02:41]} 6. Ne2 {[%clk 0:02:55]}  a6 {[%clk 0:02:40]} 7. Bc4 {[%clk 0:02:55]}  Bg7 {[%clk 0:02:40]} 8. c3 {[%clk 0:02:55]}  dxc3 {[%clk 0:02:34]} 9. dxc3 {[%clk 0:02:54]}  d6 {[%clk 0:02:33]} 10. Qb3 {[%clk 0:02:42]}  e6 {[%clk 0:02:24]} 11. O-O {[%clk 0:02:41]}  Ne7 {[%clk 0:02:20]} 12. Rd1 {[%clk 0:02:41]}  O-O {[%clk 0:02:08]} 13. a4 {[%clk 0:02:32]}  Nc6 {[%clk 0:02:05]} 14. Qc2 {[%clk 0:02:32]}  Qe7 {[%clk 0:01:50]} 15. Be3 {[%clk 0:02:24]}  Bd7 {[%clk 0:01:14]} 16. Bb6 {[%clk 0:02:23]}  Ne5 {[%clk 0:01:13]} 17. Bb3 {[%clk 0:02:22]}  Bc6 {[%clk 0:01:12]} 18. Nd4 {[%clk 0:02:21]}  Nd7 {[%clk 0:01:06]} 19. Nxc6 {[%clk 0:02:22]}  bxc6 {[%clk 0:01:07]} 20. Be3 {[%clk 0:02:22]}  Rab8 {[%clk 0:01:02]} 21. a5 {[%clk 0:02:09]}  d5 {[%clk 0:00:59]} 22. Ba4 {[%clk 0:02:09]}  Rfc8 {[%clk 0:00:57]} 23. Qe2 {[%clk 0:02:09]}  Nc5 {[%clk 0:00:50]} 24. Bxc5 {[%clk 0:01:38]}  Qxc5 {[%clk 0:00:50]} 25. Qxa6 {[%clk 0:01:39]}  Ra8 {[%clk 0:00:42]} 26. Qf1 {[%clk 0:01:27]}  Rcb8 {[%clk 0:00:21]} 27. b4 {[%clk 0:00:16]}  Qxc3 {[%clk 0:00:20]} 28. Rac1 {[%clk 0:00:17]}  Qxb4 {[%clk 0:00:19]} 29. Bxc6 {[%clk 0:00:18]}  Rxa5 {[%clk 0:00:18]} 30. exd5 {[%clk 0:00:19]}  exd5 {[%clk 0:00:16]} 31. Bxd5 {[%clk 0:00:20]}  Ra7 {[%clk 0:00:15]} 32. Qe2 {[%clk 0:00:14]}  Re7 {[%clk 0:00:13]} 33. Qf3 {[%clk 0:00:14]}  h5 {[%clk 0:00:09]} 34. g3 {[%clk 0:00:14]}  Rbe8 {[%clk 0:00:07]} 35. Kg2 {[%clk 0:00:15]}  Qb6 {[%clk 0:00:06]} 36. Rc6 {[%clk 0:00:15]}  Qb2 {[%clk 0:00:06]} 37. Rxg6 {[%clk 0:00:15]}  Kf8 {[%clk 0:00:03]} 38. Rg5 {[%clk 0:00:14]}  Re5 {[%clk 0:00:03]} 39. Rxh5 {[%clk 0:00:14]}  R5e7 {[%clk 0:00:02]} 40. Rf5 {[%clk 0:00:14]}  f6 {[%clk 0:00:01]} 41. Qg4 {[%clk 0:00:11]}  Qe2 {[%clk 0:00:02]} 42. Bf3 {[%clk 0:00:09]}  Qe6 {[%clk 0:00:01]} 43. h4 {[%clk 0:00:08]}  Qf7 {[%clk 0:00:02]} 44. Rd4 {[%clk 0:00:08]}  Re5 {[%clk 0:00:03]} 45. Rxe5 {[%clk 0:00:08]}  Rxe5 {[%clk 0:00:04]} 46. Rd8+ {[%clk 0:00:08]}  Re8 {[%clk 0:00:04]} 47. Rd7 {[%clk 0:00:09]}  Re7 {[%clk 0:00:04]} 48. Bd5 {[%clk 0:00:09]}  Qe8 {[%clk 0:00:04]} 49. Rd6 {[%clk 0:00:09]}  Re5 {[%clk 0:00:03]} 50. Qf3 {[%clk 0:00:06]}  Qe7 {[%clk 0:00:03]} 51. Rc6 {[%clk 0:00:06]}  Bh6 {[%clk 0:00:02]} 52. Rxf6+ {[%clk 0:00:06]} 1-0


[Site "https://www.chess.com"]

[Event "Titled Tuesday Blitz January 10 Early 2023"]
[White "Mahdavi, Reza"]
[Black "Yaksin, Oleg"]
[WhiteFideId "12595926"]
[BlackFideId "24105880"]
[WhiteElo "2339"]
[BlackElo "2389"]
[Result "1/2-1/2"]
[Round "07"]
[TimeControl "180+2"]
[Date "2023.01.10"]
[WhiteClock "0:00:07"]
[BlackClock "0:00:05"]

1. e4 {[%clk 0:03:00]}  c5 {[%clk 0:02:54]} 2. Nf3 {[%clk 0:03:01]}  d6 {[%clk 0:02:54]} 3. Bb5+ {[%clk 0:03:01]}  Bd7 {[%clk 0:02:54]} 4. Bxd7+ {[%clk 0:02:52]}  Qxd7 {[%clk 0:02:55]} 5. O-O {[%clk 0:02:50]}  Nc6 {[%clk 0:02:55]} 6. c3 {[%clk 0:02:49]}  Nf6 {[%clk 0:02:53]} 7. Re1 {[%clk 0:02:47]}  e6 {[%clk 0:02:53]} 8. d4 {[%clk 0:02:45]}  cxd4 {[%clk 0:02:54]} 9. cxd4 {[%clk 0:02:46]}  d5 {[%clk 0:02:54]} 10. e5 {[%clk 0:02:46]}  Ne4 {[%clk 0:02:54]} 11. Nbd2 {[%clk 0:02:46]}  Nxd2 {[%clk 0:02:54]} 12. Bxd2 {[%clk 0:02:47]}  Be7 {[%clk 0:02:55]} 13. Rc1 {[%clk 0:02:46]}  O-O {[%clk 0:02:54]} 14. Rc3 {[%clk 0:02:47]}  Rfc8 {[%clk 0:02:34]} 15. a3 {[%clk 0:02:30]}  Nd8 {[%clk 0:02:24]} 16. Rd3 {[%clk 0:02:26]}  Qb5 {[%clk 0:02:17]} 17. Rb3 {[%clk 0:02:10]}  Qa6 {[%clk 0:01:59]} 18. Rf1 {[%clk 0:02:05]}  Nc6 {[%clk 0:01:54]} 19. Rc3 {[%clk 0:01:49]}  Qb6 {[%clk 0:01:40]} 20. Rb3 {[%clk 0:01:43]}  Qa6 {[%clk 0:01:40]} 21. Rc3 {[%clk 0:01:34]}  Na5 {[%clk 0:01:34]} 22. Rxc8+ {[%clk 0:01:22]}  Rxc8 {[%clk 0:01:34]} 23. Qa4 {[%clk 0:01:23]}  Nc6 {[%clk 0:01:02]} 24. Qxa6 {[%clk 0:01:18]}  bxa6 {[%clk 0:01:03]} 25. Rc1 {[%clk 0:01:19]}  Kf8 {[%clk 0:01:03]} 26. b4 {[%clk 0:01:16]}  Ke8 {[%clk 0:01:03]} 27. Kf1 {[%clk 0:01:15]}  Kd7 {[%clk 0:01:03]} 28. Ke2 {[%clk 0:01:16]}  Bd8 {[%clk 0:00:56]} 29. Kd3 {[%clk 0:01:13]}  h6 {[%clk 0:00:55]} 30. Rc2 {[%clk 0:01:09]}  Rb8 {[%clk 0:00:55]} 31. Ne1 {[%clk 0:01:03]}  a5 {[%clk 0:00:52]} 32. Rb2 {[%clk 0:00:57]}  axb4 {[%clk 0:00:46]} 33. axb4 {[%clk 0:00:58]}  a5 {[%clk 0:00:32]} 34. Nc2 {[%clk 0:00:47]}  axb4 {[%clk 0:00:25]} 35. Bxb4 {[%clk 0:00:45]}  Nxb4+ {[%clk 0:00:13]} 36. Rxb4 {[%clk 0:00:46]}  Rxb4 {[%clk 0:00:13]} 37. Nxb4 {[%clk 0:00:47]}  Ba5 {[%clk 0:00:13]} 38. Nc2 {[%clk 0:00:46]}  Ke7 {[%clk 0:00:12]} 39. f4 {[%clk 0:00:45]}  f5 {[%clk 0:00:10]} 40. exf6+ {[%clk 0:00:40]}  gxf6 {[%clk 0:00:10]} 41. Ne3 {[%clk 0:00:40]}  f5 {[%clk 0:00:08]} 42. g4 {[%clk 0:00:39]}  fxg4 {[%clk 0:00:07]} 43. Nxg4 {[%clk 0:00:40]}  h5 {[%clk 0:00:08]} 44. Ne5 {[%clk 0:00:40]}  Kf6 {[%clk 0:00:07]} 45. Ke3 {[%clk 0:00:39]}  Kf5 {[%clk 0:00:06]} 46. Kf3 {[%clk 0:00:40]}  Bd2 {[%clk 0:00:06]} 47. Nd3 {[%clk 0:00:32]}  Bc3 {[%clk 0:00:05]} 48. Ke3 {[%clk 0:00:32]}  Ba5 {[%clk 0:00:04]} 49. h3 {[%clk 0:00:28]}  Bc7 {[%clk 0:00:05]} 50. Kf3 {[%clk 0:00:29]}  Bd6 {[%clk 0:00:04]} 51. Ke3 {[%clk 0:00:15]}  Bc7 {[%clk 0:00:04]} 52. Kf3 {[%clk 0:00:14]}  Bd6 {[%clk 0:00:05]} 53. Ke3 {[%clk 0:00:07]}  Bc7 {[%clk 0:00:05]} 1/2-1/2


[Site "https://www.chess.com"]

[Event "Titled Tuesday Blitz January 10 Early 2023"]
[White "Rakhmanov, Aleksandr"]
[Black "Novik, Maxim"]
[WhiteFideId "4173708"]
[BlackFideId "4102924"]
[WhiteElo "2632"]
[BlackElo "2436"]
[Result "1-0"]
[Round "07"]
[TimeControl "180+2"]
[Date "2023.01.10"]
[WhiteClock "0:00:33"]
[BlackClock "0:00:03"]

1. d4 {[%clk 0:02:53]}  Nf6 {[%clk 0:02:59]} 2. c4 {[%clk 0:02:54]}  g6 {[%clk 0:02:58]} 3. Nc3 {[%clk 0:02:55]}  d5 {[%clk 0:02:58]} 4. cxd5 {[%clk 0:02:56]}  Nxd5 {[%clk 0:02:58]} 5. Nf3 {[%clk 0:02:57]}  Bg7 {[%clk 0:02:58]} 6. Qa4+ {[%clk 0:02:57]}  Bd7 {[%clk 0:02:57]} 7. Qa3 {[%clk 0:02:57]}  Nxc3 {[%clk 0:02:55]} 8. bxc3 {[%clk 0:02:58]}  O-O {[%clk 0:02:53]} 9. Bg5 {[%clk 0:02:58]}  Re8 {[%clk 0:02:50]} 10. e3 {[%clk 0:02:57]}  b6 {[%clk 0:02:44]} 11. Be2 {[%clk 0:02:56]}  Bc6 {[%clk 0:02:44]} 12. O-O {[%clk 0:02:55]}  Bb7 {[%clk 0:02:42]} 13. Rfd1 {[%clk 0:02:53]}  Nd7 {[%clk 0:02:35]} 14. Rac1 {[%clk 0:02:46]}  Nf6 {[%clk 0:02:34]} 15. c4 {[%clk 0:02:42]}  Ne4 {[%clk 0:02:34]} 16. Bf4 {[%clk 0:02:42]}  Qc8 {[%clk 0:02:22]} 17. c5 {[%clk 0:02:39]}  Bd5 {[%clk 0:02:18]} 18. Ba6 {[%clk 0:02:23]}  Qf5 {[%clk 0:02:12]} 19. h3 {[%clk 0:02:17]}  c6 {[%clk 0:01:56]} 20. Bb7 {[%clk 0:02:10]}  b5 {[%clk 0:01:56]} 21. Bxa8 {[%clk 0:02:07]}  Rxa8 {[%clk 0:01:55]} 22. Qa6 {[%clk 0:02:02]}  g5 {[%clk 0:01:53]} 23. Bh2 {[%clk 0:02:00]}  g4 {[%clk 0:01:51]} 24. hxg4 {[%clk 0:01:59]}  Qxg4 {[%clk 0:01:51]} 25. Qb7 {[%clk 0:01:54]}  Re8 {[%clk 0:01:51]} 26. Qc7 {[%clk 0:01:51]}  e5 {[%clk 0:01:42]} 27. dxe5 {[%clk 0:01:39]}  Ng5 {[%clk 0:01:28]} 28. Ne1 {[%clk 0:01:34]}  Nh3+ {[%clk 0:00:18]} 29. Kf1 {[%clk 0:01:29]}  Bc4+ {[%clk 0:00:17]} 30. Rxc4 {[%clk 0:01:17]}  Qxc4+ {[%clk 0:00:16]} 31. Rd3 {[%clk 0:01:11]}  Ng5 {[%clk 0:00:15]} 32. Qd7 {[%clk 0:01:01]}  Rf8 {[%clk 0:00:16]} 33. Qd4 {[%clk 0:00:49]}  Qxa2 {[%clk 0:00:15]} 34. Qg4 {[%clk 0:00:49]}  Ne6 {[%clk 0:00:15]} 35. e4 {[%clk 0:00:48]}  Qc4 {[%clk 0:00:15]} 36. Kg1 {[%clk 0:00:47]}  Qc1 {[%clk 0:00:14]} 37. Rd1 {[%clk 0:00:46]}  Qg5 {[%clk 0:00:14]} 38. Qf5 {[%clk 0:00:42]}  Qxf5 {[%clk 0:00:13]} 39. exf5 {[%clk 0:00:42]}  Nxc5 {[%clk 0:00:14]} 40. Rc1 {[%clk 0:00:41]}  Nd3 {[%clk 0:00:13]} 41. Nxd3 {[%clk 0:00:41]}  Rd8 {[%clk 0:00:10]} 42. f6 {[%clk 0:00:37]}  Rxd3 {[%clk 0:00:09]} 43. fxg7 {[%clk 0:00:37]}  Kxg7 {[%clk 0:00:09]} 44. Bg3 {[%clk 0:00:36]}  a5 {[%clk 0:00:07]} 45. Rxc6 {[%clk 0:00:37]}  a4 {[%clk 0:00:07]} 46. Ra6 {[%clk 0:00:34]}  a3 {[%clk 0:00:07]} 47. Bh4 {[%clk 0:00:32]}  b4 {[%clk 0:00:07]} 48. Bf6+ {[%clk 0:00:33]}  Kg6 {[%clk 0:00:07]} 49. Be7+ {[%clk 0:00:33]}  Kf5 {[%clk 0:00:07]} 50. Bxb4 {[%clk 0:00:34]}  Kxe5 {[%clk 0:00:03]} 51. Bxa3 {[%clk 0:00:33]} 1-0


[Site "https://www.chess.com"]

[Event "Titled Tuesday Blitz January 10 Early 2023"]
[White "Samunenkov, Ihor"]
[Black "Bazarov, Konstantin"]
[WhiteFideId "14187086"]
[BlackFideId "4137000"]
[WhiteElo "2501"]
[BlackElo "2235"]
[Result "1-0"]
[Round "07"]
[TimeControl "180+2"]
[Date "2023.01.10"]
[WhiteClock "0:00:13"]
[BlackClock "0:00:04"]

1. e4 {[%clk 0:03:00]}  b6 {[%clk 0:02:59]} 2. d4 {[%clk 0:03:00]}  Bb7 {[%clk 0:02:59]} 3. Bd3 {[%clk 0:03:00]}  e6 {[%clk 0:03:00]} 4. Nf3 {[%clk 0:03:00]}  Nf6 {[%clk 0:03:00]} 5. Qe2 {[%clk 0:03:01]}  Be7 {[%clk 0:02:59]} 6. e5 {[%clk 0:02:42]}  Nd5 {[%clk 0:02:58]} 7. Be4 {[%clk 0:02:42]}  Qc8 {[%clk 0:02:56]} 8. c4 {[%clk 0:02:32]}  Nb4 {[%clk 0:02:35]} 9. a3 {[%clk 0:02:31]}  N4a6 {[%clk 0:02:26]} 10. O-O {[%clk 0:02:29]}  d6 {[%clk 0:02:23]} 11. Nc3 {[%clk 0:02:26]}  Bxe4 {[%clk 0:02:18]} 12. Qxe4 {[%clk 0:02:26]}  Nd7 {[%clk 0:02:17]} 13. b4 {[%clk 0:02:18]}  dxe5 {[%clk 0:02:12]} 14. dxe5 {[%clk 0:01:52]}  O-O {[%clk 0:01:56]} 15. Bg5 {[%clk 0:01:51]}  Qd8 {[%clk 0:01:47]} 16. Bxe7 {[%clk 0:01:38]}  Qxe7 {[%clk 0:01:47]} 17. Qb7 {[%clk 0:01:39]}  Nxb4 {[%clk 0:01:31]} 18. axb4 {[%clk 0:01:36]}  Qxb4 {[%clk 0:01:31]} 19. Nb5 {[%clk 0:01:18]}  Qxc4 {[%clk 0:01:14]} 20. Nxa7 {[%clk 0:01:06]}  Rfb8 {[%clk 0:01:03]} 21. Qc6 {[%clk 0:01:03]}  Qxc6 {[%clk 0:00:56]} 22. Nxc6 {[%clk 0:01:03]}  Re8 {[%clk 0:00:56]} 23. Nfd4 {[%clk 0:01:04]}  f6 {[%clk 0:00:45]} 24. Nb5 {[%clk 0:01:01]}  Rac8 {[%clk 0:00:36]} 25. Ra7 {[%clk 0:00:56]}  Nxe5 {[%clk 0:00:35]} 26. Nxe5 {[%clk 0:00:53]}  fxe5 {[%clk 0:00:35]} 27. Rxc7 {[%clk 0:00:52]}  Rxc7 {[%clk 0:00:32]} 28. Nxc7 {[%clk 0:00:53]}  Rc8 {[%clk 0:00:27]} 29. Nb5 {[%clk 0:00:52]}  Kf8 {[%clk 0:00:24]} 30. g3 {[%clk 0:00:46]}  Ke7 {[%clk 0:00:21]} 31. Rb1 {[%clk 0:00:44]}  Rc5 {[%clk 0:00:21]} 32. Rb3 {[%clk 0:00:28]}  Kd7 {[%clk 0:00:20]} 33. Nc3 {[%clk 0:00:28]}  Kc7 {[%clk 0:00:19]} 34. Kf1 {[%clk 0:00:24]}  Kc6 {[%clk 0:00:18]} 35. Ke2 {[%clk 0:00:24]}  b5 {[%clk 0:00:17]} 36. Kd3 {[%clk 0:00:24]}  h6 {[%clk 0:00:14]} 37. h4 {[%clk 0:00:22]}  g6 {[%clk 0:00:11]} 38. Rb2 {[%clk 0:00:13]}  e4+ {[%clk 0:00:09]} 39. Nxe4 {[%clk 0:00:13]}  Rd5+ {[%clk 0:00:09]} 40. Ke3 {[%clk 0:00:13]}  Rd1 {[%clk 0:00:09]} 41. Nc3 {[%clk 0:00:11]}  Ra1 {[%clk 0:00:04]} 42. Nxb5 {[%clk 0:00:11]}  e5 {[%clk 0:00:04]} 43. Nc3 {[%clk 0:00:11]}  Kc5 {[%clk 0:00:04]} 44. Ne4+ {[%clk 0:00:11]}  Kd5 {[%clk 0:00:04]} 45. Rd2+ {[%clk 0:00:10]}  Kc4 {[%clk 0:00:03]} 46. Rd6 {[%clk 0:00:10]}  Re1+ {[%clk 0:00:02]} 47. Kf3 {[%clk 0:00:11]}  Ra1 {[%clk 0:00:01]} 48. Rxg6 {[%clk 0:00:11]}  Kd4 {[%clk 0:00:01]} 49. Rd6+ {[%clk 0:00:10]}  Kc4 {[%clk 0:00:02]} 50. Rxh6 {[%clk 0:00:11]}  Ra3+ {[%clk 0:00:03]} 51. Kg2 {[%clk 0:00:11]}  Ra8 {[%clk 0:00:03]} 52. Rd6 {[%clk 0:00:11]}  Re8 {[%clk 0:00:03]} 53. h5 {[%clk 0:00:11]}  Kb5 {[%clk 0:00:03]} 54. h6 {[%clk 0:00:12]}  Rh8 {[%clk 0:00:03]} 55. g4 {[%clk 0:00:12]}  Rg8 {[%clk 0:00:04]} 56. g5 {[%clk 0:00:13]}  Kc4 {[%clk 0:00:03]} 57. h7 {[%clk 0:00:12]}  Rh8 {[%clk 0:00:03]} 58. g6 {[%clk 0:00:13]}  Rf8 {[%clk 0:00:04]} 59. g7 {[%clk 0:00:13]}  Rf4 {[%clk 0:00:05]} 60. g8=Q+ {[%clk 0:00:13]}  Kb4 {[%clk 0:00:04]} 61. Rb6+ {[%clk 0:00:13]} 1-0


[Site "https://www.chess.com"]

[Event "Titled Tuesday Blitz January 10 Early 2023"]
[White "Garakov, Mikhael"]
[Black "Halkias, Stelios"]
[WhiteFideId "4169034"]
[BlackFideId "4201809"]
[WhiteElo "2447"]
[BlackElo "2511"]
[Result "1-0"]
[Round "07"]
[TimeControl "180+2"]
[Date "2023.01.10"]
[WhiteClock "0:00:02"]
[BlackClock "0:00:32"]

1. e4 {[%clk 0:02:33]}  c5 {[%clk 0:02:58]} 2. Nf3 {[%clk 0:02:32]}  Nc6 {[%clk 0:02:57]} 3. Bb5 {[%clk 0:02:31]}  d6 {[%clk 0:02:55]} 4. c3 {[%clk 0:02:31]}  Nf6 {[%clk 0:02:54]} 5. Qe2 {[%clk 0:02:31]}  Bd7 {[%clk 0:02:52]} 6. d4 {[%clk 0:02:31]}  cxd4 {[%clk 0:02:41]} 7. cxd4 {[%clk 0:02:32]}  Rc8 {[%clk 0:02:41]} 8. Nc3 {[%clk 0:02:29]}  e5 {[%clk 0:02:41]} 9. Bxc6 {[%clk 0:02:16]}  Bxc6 {[%clk 0:02:40]} 10. dxe5 {[%clk 0:02:12]}  dxe5 {[%clk 0:02:40]} 11. Nxe5 {[%clk 0:02:12]}  Bb4 {[%clk 0:02:40]} 12. Nxc6 {[%clk 0:02:07]}  Rxc6 {[%clk 0:02:40]} 13. O-O {[%clk 0:02:06]}  O-O {[%clk 0:02:37]} 14. Bg5 {[%clk 0:01:38]}  Bxc3 {[%clk 0:02:28]} 15. bxc3 {[%clk 0:01:36]}  h6 {[%clk 0:02:28]} 16. Bh4 {[%clk 0:01:33]}  Rxc3 {[%clk 0:01:57]} 17. e5 {[%clk 0:01:11]}  Qd4 {[%clk 0:01:53]} 18. Bxf6 {[%clk 0:01:02]}  gxf6 {[%clk 0:01:52]} 19. e6 {[%clk 0:01:01]}  Qe5 {[%clk 0:01:49]} 20. Qd2 {[%clk 0:00:45]}  Rc6 {[%clk 0:01:14]} 21. Rae1 {[%clk 0:00:41]}  Qg5 {[%clk 0:01:13]} 22. Re3 {[%clk 0:00:35]}  Kh8 {[%clk 0:00:57]} 23. e7 {[%clk 0:00:34]}  Re8 {[%clk 0:00:57]} 24. Qd7 {[%clk 0:00:31]}  Rcc8 {[%clk 0:00:55]} 25. Qxb7 {[%clk 0:00:24]}  f5 {[%clk 0:00:53]} 26. Qxa7 {[%clk 0:00:14]}  f4 {[%clk 0:00:52]} 27. Qd4+ {[%clk 0:00:12]}  Kh7 {[%clk 0:00:48]} 28. Re5 {[%clk 0:00:12]}  Qf6 {[%clk 0:00:47]} 29. Qe4+ {[%clk 0:00:11]}  Kh8 {[%clk 0:00:47]} 30. Re1 {[%clk 0:00:09]}  Rc6 {[%clk 0:00:44]} 31. Rf5 {[%clk 0:00:08]}  Qc3 {[%clk 0:00:38]} 32. Rxf7 {[%clk 0:00:01]}  Rg6 {[%clk 0:00:32]} 33. Rf8+ {[%clk 0:00:01]}  Kg7 {[%clk 0:00:32]} 34. Rxe8 {[%clk 0:00:01]}  f3 {[%clk 0:00:32]} 35. Rg8+ {[%clk 0:00:01]}  Kxg8 {[%clk 0:00:33]} 36. e8=Q+ {[%clk 0:00:02]}  Kh7 {[%clk 0:00:32]} 37. Q4xg6# {[%clk 0:00:02]} 1-0


[Site "https://www.chess.com"]

[Event "Titled Tuesday Blitz January 10 Early 2023"]
[White "Horvath, Dominik"]
[Black "Perez Rodriguez, Luis Manuel"]
[WhiteFideId "1642561"]
[BlackFideId "3503364"]
[WhiteElo "2523"]
[BlackElo "2329"]
[Result "0-1"]
[Round "07"]
[TimeControl "180+2"]
[Date "2023.01.10"]
[WhiteClock "0:01:12"]
[BlackClock "0:00:23"]

1. f4 {[%clk 0:03:00]}  d5 {[%clk 0:02:57]} 2. Nf3 {[%clk 0:02:57]}  g6 {[%clk 0:02:54]} 3. d3 {[%clk 0:02:54]}  Bg7 {[%clk 0:02:54]} 4. Nbd2 {[%clk 0:02:54]}  c5 {[%clk 0:02:48]} 5. e4 {[%clk 0:02:53]}  Nc6 {[%clk 0:02:48]} 6. e5 {[%clk 0:02:49]}  f6 {[%clk 0:02:46]} 7. exf6 {[%clk 0:02:47]}  exf6 {[%clk 0:02:43]} 8. Be2 {[%clk 0:02:45]}  Nge7 {[%clk 0:02:42]} 9. O-O {[%clk 0:02:45]}  O-O {[%clk 0:02:43]} 10. c3 {[%clk 0:02:41]}  b6 {[%clk 0:02:38]} 11. a3 {[%clk 0:02:37]}  a5 {[%clk 0:02:36]} 12. a4 {[%clk 0:02:36]}  Re8 {[%clk 0:02:35]} 13. Re1 {[%clk 0:02:35]}  Nf5 {[%clk 0:02:35]} 14. Nf1 {[%clk 0:02:34]}  Ra7 {[%clk 0:02:34]} 15. d4 {[%clk 0:02:28]}  cxd4 {[%clk 0:02:27]} 16. Bb5 {[%clk 0:02:28]}  Rxe1 {[%clk 0:02:25]} 17. Qxe1 {[%clk 0:02:29]}  Re7 {[%clk 0:02:11]} 18. Qf2 {[%clk 0:02:29]}  Qd6 {[%clk 0:02:03]} 19. Bxc6 {[%clk 0:02:27]}  Qxc6 {[%clk 0:02:03]} 20. Nxd4 {[%clk 0:02:27]}  Nxd4 {[%clk 0:02:03]} 21. Qxd4 {[%clk 0:02:28]}  Re1 {[%clk 0:01:52]} 22. Kf2 {[%clk 0:02:24]}  Re4 {[%clk 0:01:34]} 23. Qd1 {[%clk 0:02:24]}  Ba6 {[%clk 0:01:31]} 24. Ng3 {[%clk 0:02:24]}  Qc5+ {[%clk 0:01:31]} 25. Kf3 {[%clk 0:02:23]}  Re8 {[%clk 0:01:22]} 26. f5 {[%clk 0:02:10]}  d4 {[%clk 0:00:54]} 27. Qxd4 {[%clk 0:02:06]}  Qc6+ {[%clk 0:00:54]} 28. Kf2 {[%clk 0:01:53]}  Bf8 {[%clk 0:00:53]} 29. b4 {[%clk 0:01:53]}  axb4 {[%clk 0:00:50]} 30. cxb4 {[%clk 0:01:54]}  Qc2+ {[%clk 0:00:50]} 31. Bd2 {[%clk 0:01:51]}  gxf5 {[%clk 0:00:45]} 32. Rc1 {[%clk 0:01:38]}  Qxa4 {[%clk 0:00:45]} 33. Qd5+ {[%clk 0:01:28]}  Kh8 {[%clk 0:00:41]} 34. Qxf5 {[%clk 0:01:28]}  Qa2 {[%clk 0:00:36]} 35. Rc7 {[%clk 0:01:14]}  Qxd2+ {[%clk 0:00:34]} 36. Kf3 {[%clk 0:01:13]}  Be2+ {[%clk 0:00:31]} 37. Nxe2 {[%clk 0:01:11]}  Qxe2+ {[%clk 0:00:32]} 38. Kg3 {[%clk 0:01:11]}  Bd6+ {[%clk 0:00:31]} 39. Kh4 {[%clk 0:01:11]}  Bxc7 {[%clk 0:00:25]} 40. Qxf6+ {[%clk 0:01:11]}  Kg8 {[%clk 0:00:25]} 41. Qg5+ {[%clk 0:01:12]}  Kf7 {[%clk 0:00:25]} 42. Qf5+ {[%clk 0:01:12]}  Ke7 {[%clk 0:00:24]} 43. Qg5+ {[%clk 0:01:12]}  Kd7 {[%clk 0:00:24]} 44. Qd5+ {[%clk 0:01:12]}  Bd6 {[%clk 0:00:23]} 45. Qb7+ {[%clk 0:01:13]}  Ke6 {[%clk 0:00:23]} 46. g4 {[%clk 0:01:11]}  Qxh2+ {[%clk 0:00:22]} 47. Kg5 {[%clk 0:01:11]}  Qf4+ {[%clk 0:00:22]} 48. Kh4 {[%clk 0:01:12]}  Qh6# {[%clk 0:00:23]} 0-1


[Site "https://www.chess.com"]

[Event "Titled Tuesday Blitz January 10 Early 2023"]
[White "Blohberger, Felix"]
[Black "Sai Han Thiha"]
[WhiteFideId "1632051"]
[BlackFideId "13012290"]
[WhiteElo "2501"]
[BlackElo "2070"]
[Result "0-1"]
[Round "07"]
[TimeControl "180+2"]
[Date "2023.01.10"]
[WhiteClock "0:00:49"]
[BlackClock "0:00:37"]

1. f4 {[%clk 0:03:00]}  Nf6 {[%clk 0:02:55]} 2. Nf3 {[%clk 0:02:59]}  c5 {[%clk 0:02:49]} 3. b3 {[%clk 0:02:50]}  d5 {[%clk 0:02:39]} 4. e3 {[%clk 0:02:50]}  Bf5 {[%clk 0:02:37]} 5. Bb2 {[%clk 0:02:50]}  e6 {[%clk 0:02:35]} 6. Bb5+ {[%clk 0:02:41]}  Nbd7 {[%clk 0:02:32]} 7. O-O {[%clk 0:02:40]}  Be7 {[%clk 0:02:30]} 8. d3 {[%clk 0:02:26]}  O-O {[%clk 0:02:29]} 9. Bxd7 {[%clk 0:02:22]}  Nxd7 {[%clk 0:02:14]} 10. Nbd2 {[%clk 0:02:23]}  Bf6 {[%clk 0:02:14]} 11. Bxf6 {[%clk 0:02:16]}  Nxf6 {[%clk 0:02:15]} 12. Ne5 {[%clk 0:02:15]}  h6 {[%clk 0:02:08]} 13. Qf3 {[%clk 0:02:07]}  Bh7 {[%clk 0:02:08]} 14. g4 {[%clk 0:02:06]}  Nd7 {[%clk 0:01:41]} 15. Nxd7 {[%clk 0:02:06]}  Qxd7 {[%clk 0:01:42]} 16. h4 {[%clk 0:02:01]}  b5 {[%clk 0:01:15]} 17. h5 {[%clk 0:01:34]}  c4 {[%clk 0:01:05]} 18. bxc4 {[%clk 0:01:27]}  bxc4 {[%clk 0:01:04]} 19. dxc4 {[%clk 0:01:25]}  Bxc2 {[%clk 0:01:01]} 20. cxd5 {[%clk 0:01:24]}  exd5 {[%clk 0:00:59]} 21. Rac1 {[%clk 0:01:21]}  Rac8 {[%clk 0:00:58]} 22. Rf2 {[%clk 0:01:02]}  Be4 {[%clk 0:00:51]} 23. Qd1 {[%clk 0:00:59]}  Rxc1 {[%clk 0:00:51]} 24. Qxc1 {[%clk 0:01:00]}  Qxg4+ {[%clk 0:00:51]} 25. Kf1 {[%clk 0:00:56]}  Rc8 {[%clk 0:00:39]} 26. Qa3 {[%clk 0:00:49]}  Qd1# {[%clk 0:00:37]} 0-1


[Site "https://www.chess.com"]